fUSD/lending_fUSD_20240214
["ID","MTS","AMOUNT","RATE_DAILY","PERIOD"]
[313965129,1707873038823,-156.78126199,0.00022878,2]
[313965130,1707873038832,-156.09398112,0.00022878,2]
[313965131,1707873038842,-701.022719,0.00022878,2]
[313965132,1707873038855,-220.87490175,0.00022878,2]
[313965133,1707873038866,-155.0,0.00022878,2]
[313965134,1707873038876,-342.9535079,0.00022878,2]
[313965135,1707873038886,-155.19768887,0.00022878,2]
[313965136,1707873038896,-155.33093318,0.00022878,2]
[313965137,1707873038906,-526.98480998,0.00022878,2]
[313965138,1707873038916,-170.41702033,0.00022878,2]
[313965139,1707873038926,-155.0,0.00022878,2]
[313965140,1707873038936,-1294.46289533,0.00022878,2]
[313965141,1707873038945,-979.32742237,0.00022878,2]
[313965142,1707873038955,-171.88977379,0.00022878,2]
[313965143,1707873038965,-155.47694052,0.00022878,2]
[313965144,1707873038974,-3734.38236608,0.00022878,2]
[313965145,1707873038984,-157.18395696,0.00022878,2]
[313965146,1707873038993,-246.18989559,0.00022878,2]
[313965147,1707873039002,-185.43936066,0.00022878,2]
[313965148,1707873039012,-5171.98984422,0.00022878,2]
[313965149,1707873039021,-226.47050172,0.00022878,2]
[313965150,1707873039031,-3748.15753242,0.00022878,2]
[313965151,1707873039041,-155.0,0.00022878,2]
[313965152,1707873039051,-155.87086239,0.00022878,2]
[313965153,1707873039062,-247.77956234,0.00022878,2]
[313965154,1707873039071,-155.79131538,0.00022878,2]
[313965155,1707873039081,-1729.47210602,0.00022878,2]
[313965156,1707873039091,-204.53203876,0.00022878,2]
[313965157,1707873039101,-345.19549852,0.00022878,2]
[313965158,1707873039111,-156.20024098,0.00022878,2]
[313965159,1707873039121,-2397.07967291,0.00022878,2]
[313965160,1707873039130,-311.10938782,0.00022878,2]
[313965161,1707873039140,-2862.08991888,0.00022878,2]
[313965162,1707873039150,-155.60256921,0.00022878,2]
[313965163,1707873039159,-775.13806544,0.00022878,2]
[313965164,1707873039169,-156.97805113,0.00022878,2]
[313965165,1707873039179,-3472.53287847,0.00022878,2]
[313965166,1707873039188,-190.37034747,0.00022879,2]
[313965167,1707873039198,-460.15652326,0.00022879,2]
[313965168,1707873039207,-357.01872292,0.00022879,2]
[313965169,1707873039217,-500.0,0.00022879,2]
[313965170,1707873039226,-500.0,0.00022879,2]
[313965171,1707873039235,-500.0,0.00022879,2]
[313965172,1707873039244,-500.0,0.00022879,2]
[313965173,1707873039253,-500.0,0.00022879,2]
[313965174,1707873039263,-500.0,0.00022879,2]
[313965175,1707873039272,-500.0,0.00022879,2]
[313965176,1707873039281,-500.0,0.00022879,2]
[313965177,1707873039291,-500.0,0.00022879,2]
[313965178,1707873039300,-500.0,0.00022879,2]
[313965179,1707873039309,-413.59439306,0.00022879,2]
[313965180,1707873039326,-500.0,0.00022879,2]
[313965181,1707873039340,-500.0,0.00022879,2]
[313965182,1707873039354,-500.0,0.00022879,2]
[313965183,1707873039369,-500.0,0.00022879,2]
[313965184,1707873039380,-500.0,0.00022879,2]
[313965185,1707873039392,-500.0,0.00022879,2]
[313965186,1707873039405,-500.0,0.00022879,2]
[313965187,1707873039419,-185.73972814,0.00022879,2]
[313965188,1707873039435,-536.34920755,0.00022879,2]
[313965189,1707873039449,-500.0,0.00022879,2]
[313965190,1707873039462,-500.0,0.00022879,2]
[313965191,1707873039475,-500.0,0.00022879,2]
[313965192,1707873039487,-500.0,0.00022879,2]
[313965193,1707873039500,-500.0,0.00022879,2]
[313965194,1707873039512,-500.0,0.00022879,2]
[313965195,1707873039523,-500.0,0.00022879,2]
[313965196,1707873039536,-500.0,0.00022879,2]
[313965197,1707873039548,-500.0,0.00022879,2]
[313965198,1707873039569,-202.29914794,0.00022879,2]
[313965199,1707873039593,-165.93084259,0.00022879,2]
[313965200,1707873039610,-472.03134518,0.00022879,2]
[313965201,1707873039624,-150.0,0.00022879,2]
[313965202,1707873039638,-150.0,0.00022879,2]
[313965203,1707873039652,-150.0,0.00022879,2]
[313965204,1707873039666,-406.77115061,0.00022879,2]
[313965205,1707873039680,-642.72755454,0.00022879,3]
[313965206,1707873039692,-969597.24623428,0.0002288,3]
[313965207,1707873039708,-4202000.87153849,0.0002288,2]
[313965208,1707873039722,-3472.53287847,0.00022889,2]
[313965209,1707873039735,-1548.8558,0.00022898,2]
[313965210,1707873039748,-84412.6314,0.00022898,2]
[313965211,1707873039761,-251.0986,0.00022898,2]
[313965212,1707873039773,-606.7962,0.00022898,2]
[313965213,1707873039786,-1023507.921773,0.000229,2]
[313965214,1707873039798,-1000.0,0.000229,2]
[313965215,1707873039814,-340269.1553545,0.000229,2]
[313965216,1707873039828,-3472.53287847,0.000229,2]
[313965217,1707873039841,-1211.92622978,0.000229,2]
[313965218,1707873039852,-1100.95013656,0.000229,2]
[313965219,1707873039864,-175.10873062,0.000229,2]
[313965220,1707873039879,-927.23469062,0.000229,2]
[313965221,1707873039893,-1381.0,0.00022985,2]
[313965222,1707873039905,-13802.77274337,0.00022998,2]
[313965223,1707873039918,-228.90137098,0.00022998,2]
[313965224,1707873039933,-258.475,0.00022998,2]
[313965225,1707873039944,-209.74966094,0.00022998,2]
[313965226,1707873039954,-632.50548353,0.00022998,2]
[313965227,1707873039966,-355.92513218,0.00022998,2]
[313965228,1707873039978,-1099.63523633,0.00022998,2]
[313965229,1707873039991,-1046.49104352,0.00022998,2]
[313965230,1707873040004,-156.42370883,0.00022998,2]
[313965231,1707873040016,-587.35431983,0.00022998,2]
[313965232,1707873040026,-159.64699017,0.00022998,2]
[313965233,1707873040037,-2142.0204777,0.00022998,2]
[313965234,1707873040047,-202.74047803,0.00022998,2]
[313965235,1707873040060,-314.40306534,0.00022998,2]
[313965236,1707873040072,-162.10429849,0.00022998,2]
[313965237,1707873040086,-155.88371046,0.00022998,2]
[313965238,1707873040098,-260.93542581,0.00022998,2]
[313965239,1707873040110,-156.07423522,0.00022998,2]
[313965240,1707873040122,-524.31366153,0.00022998,2]
[313965241,1707873040135,-1257.76218502,0.00022998,2]
[313965242,1707873040158,-155.15070484,0.00022998,2]
[313965243,1707873040172,-163.30492899,0.00022998,2]
[313965244,1707873040186,-290.05366865,0.00022998,2]
[313965245,1707873040199,-155.4231818,0.00022998,2]
[313965246,1707873040211,-155.17807555,0.00022998,2]
[313965247,1707873040223,-254.85613051,0.00022998,2]
[313965248,1707873040236,-221.65377146,0.00022998,2]
[313965249,1707873040250,-313.5325998,0.00022998,2]
[313965250,1707873040264,-19643.90163895,0.00022998,2]
[313965251,1707873040277,-1813.68084069,0.00022998,2]
[313965252,1707873040288,-534.13363385,0.00022998,2]
[313965253,1707873040299,-155.48522269,0.00022998,2]
[313965254,1707873040311,-162.83714396,0.00022998,2]
[313965255,1707873040322,-583.66541534,0.00022998,2]
[313965256,1707873040334,-544.90427787,0.00022998,2]
[313965257,1707873040348,-265.23406397,0.00022998,2]
[313965258,1707873040361,-364.82931243,0.00022998,2]
[313965259,1707873040374,-155.0,0.00022998,2]
[313965260,1707873040386,-474.4092373,0.00022998,2]
[313965261,1707873040399,-155.07231411,0.00022998,2]
[313965262,1707873040412,-217.45925662,0.00022998,2]
[313965263,1707873040427,-155.19783312,0.00022998,2]
[313965264,1707873040439,-3340.44797552,0.00022998,2]
[313965265,1707873040451,-21518.30367841,0.00022998,2]
[313965266,1707873040466,-229.11334724,0.00022998,2]
[313965267,1707873040480,-155.0,0.00022998,2]
[313965269,1707873040491,-375.18085056,0.00022998,2]
[313965270,1707873040507,-1206.07880457,0.00022998,2]
[313965271,1707873040518,-155.0,0.00022998,2]
[313965273,1707873040529,-1407.31579397,0.00022998,2]
[313965275,1707873040540,-271.20576447,0.00022998,2]
[313965277,1707873040551,-1018.66569892,0.00022998,2]
[313965278,1707873040562,-1046.30905086,0.00022998,2]
[313965279,1707873040574,-224.48768462,0.00022998,2]
[313965280,1707873040588,-200.0,0.00022998,2]
[313965281,1707873040600,-200.0,0.00022998,2]
[313965282,1707873040611,-201.0,0.00022998,2]
[313965283,1707873040623,-151.0214,0.00022998,3]
[313965284,1707873040633,-151.0214,0.00022998,3]
[313965285,1707873040644,-151.0214,0.00022998,3]
[313965286,1707873040655,-151.0214,0.00022998,3]
[313965287,1707873040665,-151.0214,0.00022998,3]
[313965288,1707873040676,-151.0214,0.00022998,3]
[313965289,1707873040687,-151.0214,0.00022998,3]
[313965290,1707873040699,-151.0214,0.00022998,3]
[313965291,1707873040710,-151.0214,0.00022998,3]
[313965292,1707873040720,-151.0214,0.00022998,3]
[313965293,1707873040731,-151.0214,0.00022998,3]
[313965294,1707873040742,-151.0214,0.00022998,3]
[313965295,1707873040753,-1981.8727023,0.00022998,2]
[313965296,1707873040765,-37297.8440646,0.00022998,2]
[313965297,1707873040776,-776.4552916,0.00022998,2]
[313965298,1707873040787,-1909.5366039,0.00022998,2]
[313965299,1707873040797,-150.0,0.00022999,2]
[313965300,1707873040808,-150.0,0.00022999,2]
[313965301,1707873040819,-150.0,0.00022999,2]
[313965302,1707873040830,-150.0,0.00022999,2]
[313965303,1707873040842,-150.0,0.00022999,2]
[313965304,1707873040853,-150.0,0.00022999,2]
[313965305,1707873040864,-150.0,0.00022999,2]
[313965306,1707873040876,-2590248.61724769,0.00023,2]
[313965307,1707873040886,-2406888.82388043,0.00023,2]
[313965308,1707873040897,-1430.11501126,0.00023,5]
[313965309,1707873040908,-276474.75892678,0.00023,2]
[313965310,1707873040918,-393505.96030434,0.00023,2]
[313965311,1707873040929,-207998.59198449,0.00023,2]
[313965312,1707873040941,-710.87707791,0.00023,2]
[313965313,1707873040951,-526.28522185,0.00023,2]
[313965314,1707873040963,-380.09202361,0.00023,2]
[313965315,1707873040973,-568458.93676367,0.00023,2]
[313965316,1707873040984,-109018.34633149,0.00023,2]
[313965317,1707873041001,-2850.93961544,0.00023,2]
[313965318,1707873041014,-20679.84066294,0.00023,2]
[313965319,1707873041042,-341.52480965,0.00023,2]
[313965320,1707873041055,-3083.93062824,0.00023,2]
[313965324,1707873041647,-2731.54063482,0.00022789,2]
[313965325,1707873041658,-2963.0322613,0.00023,2]
[313965326,1707873041673,-287.4833647,0.00023,2]
[313965327,1707873041686,-657.02183902,0.00023,2]
[313965328,1707873041709,-15676.81570379,0.00023,2]
[313965342,1707873043030,-297.87035,0.00022789,2]
[313965344,1707873043042,-56.00566666,0.00022789,2]
[313965345,1707873043052,-854.50382842,0.00023,2]
[313965346,1707873043065,-1020.5000005,0.00023,2]
[313965347,1707873043079,-2512.81682625,0.00023,2]
[313965348,1707873043090,-848.89,0.00023,2]
[313965349,1707873043102,-1190.88001,0.00023,2]
[313965350,1707873043118,-651.06340159,0.00023,2]
[313965351,1707873043134,-279.20136684,0.00023,2]
[313965352,1707873043151,-835.04991627,0.00023,2]
[313965353,1707873043206,-551.15835314,0.00023,2]
[313965354,1707873043309,-6957.93753868,0.00023,2]
[313965355,1707873043322,-2221.82731439,0.00023,2]
[313965359,1707873046015,-289.63799347,0.00022,2]
[313965360,1707873046028,-285.11985045,0.00022,2]
[313965361,1707873046043,-262.03445519,0.00022,2]
[313965362,1707873046074,-1956.79200155,0.00022,2]
[313965363,1707873046085,-2731.54063482,0.00022845,2]
[313965364,1707873046096,-150.01,0.00022998,2]
[313965365,1707873046108,-2726.76862505,0.00023,2]
[313965366,1707873046120,-366.49928082,0.00023,2]
[313965367,1707873046132,-643.97892178,0.00023,2]
[313965368,1707873046144,-280.27417697,0.00023,2]
[313965369,1707873046160,-379.24221432,0.00023,2]
[313965370,1707873046182,-2903.85647648,0.00023,2]
[313965371,1707873046195,-2449.91985767,0.00023,2]
[313965372,1707873046207,-537.4350766,0.00023,2]
[313965373,1707873046218,-6690.07556095,0.00023,2]
[313965374,1707873046230,-1821.66763034,0.00023,2]
[313965375,1707873046242,-1630.30079944,0.00023,2]
[313965376,1707873046253,-6895.33541699,0.00023,2]
[313965377,1707873046268,-910.07126,0.00023,2]
[313965378,1707873046279,-3185.40529989,0.00023,2]
[313965379,1707873046308,-2248.46080941,0.00023,2]
[313965380,1707873046321,-3153.81405,0.00023,2]
[313965381,1707873046333,-547.62,0.00023,2]
[313965382,1707873046345,-866.00069912,0.00023,2]
[313965383,1707873046357,-5282.67623966,0.00023,2]
[313965384,1707873046367,-1500.0,0.00023,2]
[313965385,1707873046376,-723.0,0.00023,2]
[313965387,1707873046385,-500.0,0.00023014,2]
[313965388,1707873046394,-1166.56208194,0.0002309,2]
[313965390,1707873046404,-152.19,0.00023617,2]
[313965392,1707873046413,-2085.45968719,0.00023981,3]
[313965394,1707873046426,-840.0,0.00023981,2]
[313965396,1707873046436,-502.36281663,0.00023999,2]
[313965397,1707873046445,-202.22442285,0.00024,2]
[313965398,1707873046454,-362.48,0.00024009,2]
[313965399,1707873046463,-372.049,0.00024149,2]
[313965400,1707873046472,-150.0,0.00024149,2]
[313965401,1707873046482,-321.0,0.00024149,2]
[313965402,1707873046491,-453.0,0.00024149,2]
[313965403,1707873046501,-269.31937232,0.00024149,2]
[313965404,1707873046513,-84.22362768,0.00024149,2]
[313965405,1707873046522,-150.0,0.00024259,2]
[313965406,1707873046532,-1785.4285151,0.00024259,2]
[313965407,1707873046544,-495.71718931,0.00024259,2]
[313965408,1707873046560,-551.85429559,0.00024259,2]
[313965409,1707873046570,-1231.0,0.00024259,2]
[313965410,1707873046580,-200.0,0.00024366,2]
[313965411,1707873046589,-4846.15,0.00024384,2]
[313965412,1707873046598,-554.8,0.00024384,2]
[313965413,1707873046608,-2608.47313501,0.00024425,2]
[313965414,1707873046617,-19248.33299721,0.000246,2]
[313965415,1707873046627,-1381.0,0.00024629,2]
[313965416,1707873046637,-311.9,0.00024658,4]
[313965417,1707873046646,-250.0,0.00024658,2]
[313965418,1707873046655,-327.44785951,0.00024788,2]
[313965419,1707873046664,-150.0,0.00024789,2]
[313965420,1707873046674,-4498.71281148,0.00024789,2]
[313965421,1707873046686,-507.30573655,0.00024789,2]
[313965422,1707873046699,-20723.63039782,0.00024789,2]
[313965423,1707873046708,-27292.32584961,0.0002479,2]
[313965424,1707873046720,-18252.97645321,0.0002479,2]
[313965425,1707873046731,-10237.97779417,0.0002479,2]
[313965426,1707873046743,-33261.96494399,0.0002479,2]
[313965427,1707873046755,-12791.34461455,0.0002479,2]
[313965428,1707873046767,-2067.30774244,0.0002479,2]
[313965429,1707873046778,-3193.20702111,0.0002479,2]
[313965430,1707873046790,-6588.68402902,0.0002479,2]
[313965431,1707873046799,-33991.79348347,0.0002479,2]
[313965432,1707873046815,-3835.23705653,0.0002479,2]
[313965433,1707873754562,318.98,0.00021839,2]
[313965469,1707874222178,314.89,0.00021525,2]
[313965470,1707874231180,155.0,0.00021839,2]
[313965487,1707874232131,-155.0,0.00022048,2]
[313965490,1707874232141,-203.0,0.00022049,2]
[313965492,1707874232151,-674.15238433,0.00022416,2]
[313965493,1707874232163,-45.54761567,0.00022416,2]
[313965494,1707874232172,-482.7738164,0.00022602,2]
[313965495,1707874232184,-228.7261836,0.00022602,2]
[313965496,1707874232193,-730.15,0.00022873,2]
[313965497,1707874232203,-620.0,0.00023349,2]
[313965498,1707874232212,-656.85408318,0.00023578,2]
[313965499,1707874232224,-2325.83201682,0.00023578,2]
[313965500,1707874232234,-156.21,0.00023617,2]
[313965501,1707874232243,-171.12,0.00023649,2]
[313965502,1707874232252,-1000.0,0.00023677,2]
[313965503,1707874232262,-167.0,0.00023677,2]
[313965504,1707874232272,-200.0,0.00023703,2]
[313965505,1707874232281,-172.04,0.0002371,2]
[313965506,1707874232290,-690.5,0.00023715,2]
[313965507,1707874232300,-64.67614319,0.00023737,2]
[313965508,1707874232312,-85.32385681,0.00023737,2]
[313965509,1707874232321,-500.0,0.00023738,2]
[313965510,1707874232331,-314.89,0.00023789,2]
[313965511,1707874232341,-152.03085221,0.000238,2]
[313965512,1707874232351,-197.67,0.000238,2]
[313965513,1707874232361,-19674.0,0.000243,2]
[313965514,1707874232370,-462.33,0.00024384,2]
[313965515,1707874232384,-4038.45,0.00024384,2]
[313965516,1707874232394,-227.45,0.00024438,2]
[313965517,1707874232403,-1232.0,0.00024438,2]
[313965518,1707874232413,-800.0,0.00024592,2]
[313965519,1707874232422,-200.0,0.00024592,2]
[313965520,1707874232431,-500.0,0.00024592,2]
[313965521,1707874232442,-250.0,0.00024658,2]
[313965522,1707874232451,-600.85095487,0.00024689,2]
[313965523,1707874232460,-676.8011,0.00024689,2]
[313965524,1707874232470,-155.0,0.00024787,2]
[313965525,1707874232479,-12387.24289444,0.00024787,2]
[313965526,1707874232489,-468.86466092,0.00024787,2]
[313965527,1707874232498,-159.01334681,0.00024787,2]
[313965528,1707874232507,-3262.2222402,0.00024787,2]
[313965529,1707874232517,-176.84963795,0.00024787,2]
[313965530,1707874232527,-155.16218234,0.00024788,2]
[313965531,1707874232537,-534.13363385,0.00024788,2]
[313965532,1707874232546,-201.29693637,0.00024788,2]
[313965533,1707874232555,-1813.68084069,0.00024788,2]
[313965534,1707874232565,-3709.07961192,0.00024788,2]
[313965535,1707874232574,-439.43449481,0.00024789,2]
[313965536,1707874232584,-14213.99943918,0.00024789,2]
[313965537,1707874232593,-150.01,0.00024789,2]
[313965538,1707874232602,-54459.14727586,0.00024789,2]
[313965540,1707874232611,-456.76916732,0.0002479,2]
[313965542,1707874232621,-2608.47313501,0.0002479,2]
[313965544,1707874232635,-1011.27764784,0.00024799,2]
[313965546,1707874232645,-3317.196495,0.00024832,2]
[313965548,1707874232653,-53310.73164005,0.00024849,2]
[313965552,1707874232682,-558.62,0.00024849,2]
[313965554,1707874232696,-1075.49275789,0.00024849,2]
[313965556,1707874232707,-784.24492004,0.00024849,2]
[313965558,1707874232721,-723.29357829,0.00024849,2]
[313965561,1707874232736,-453.58903619,0.00024849,2]
[313965563,1707874232755,-1008.9263289,0.00024849,2]
[313965573,1707874238190,-453.0,0.00023681,2]
[313965574,1707874238200,-223.6056036,0.00024789,2]
[313965575,1707874238244,-624.10184608,0.00024789,2]
[313965576,1707874238294,-324.98955585,0.00024789,2]
[313965577,1707874238304,-20288.36394469,0.0002479,2]
[313965578,1707874238411,-27560.07441361,0.0002479,2]
[313965579,1707874238423,-4288.94780188,0.0002479,2]
[313965580,1707874238528,-302.66159581,0.0002479,2]
[313965581,1707874238539,-1503.78793264,0.0002479,2]
[313965582,1707874238550,-2035.01088504,0.0002479,2]
[313965583,1707874238576,-2850.93961544,0.0002479,2]
[313965616,1707874240918,-22395.00259949,0.0002479,2]
[313965617,1707874241768,-1245.01514611,0.0002479,2]
[313965618,1707874241788,-266.36387677,0.0002479,2]
[313965619,1707874241801,-250.0,0.0002479,2]
[313965620,1707874241815,-962.14280511,0.0002479,2]
[313965621,1707874241827,-4252.18336365,0.0002479,2]
[313965658,1707874243262,-1596.9,0.0002479,2]
[313965659,1707874243461,-288.11805248,0.0002479,2]
[313965660,1707874243474,-877.76214029,0.0002479,2]
[313965661,1707874243486,-742.5,0.0002479,2]
[313965662,1707874243498,-252.89340054,0.0002479,2]
[313965663,1707874243510,-1555.91707367,0.0002479,2]
[313965664,1707874243521,-4922.81195942,0.0002479,2]
[313965665,1707874243540,-97.10994265,0.0002479,2]
[313965666,1707874243549,-2843.69967199,0.00024849,2]
[313965667,1707874243602,-752.66938772,0.00024849,2]
[313965668,1707874243614,-485.305,0.00024849,2]
[313965677,1707874246233,-318.17604449,0.00024849,2]
[313965678,1707874246245,-1718.67884822,0.00024849,2]
[313965679,1707874246258,-53.32390622,0.00024849,2]
[313965680,1707874246268,-698.7214285,0.00024849,2]
[313965681,1707874246278,-3418.6518944,0.00024866,2]
[313965682,1707874246288,-4353.14275185,0.00024883,2]
[313965683,1707874246301,-274.73935495,0.00024883,2]
[313965684,1707874246314,-1087.14002,0.00024883,2]
[313965685,1707874246328,-2440.30931548,0.00024883,2]
[313965686,1707874246440,-12287.43414992,0.00024883,2]
[313965687,1707874246453,-4471.10785053,0.00024883,2]
[313965688,1707874246468,-18469.05349597,0.00024883,2]
[313965689,1707874246478,-656.75,0.000249,2]
[313965690,1707874246490,-622.16903494,0.0002497,2]
[313965691,1707874246501,-620.0,0.00024993,2]
[313965692,1707874246512,-168.32868177,0.00025,2]
[313965693,1707874246521,-1910.1668503,0.00025,2]
[313965694,1707874246532,-659.47170738,0.00025,2]
[313965695,1707874246543,-1592.37015014,0.00025,2]
[313965696,1707874246553,-946.49306219,0.00025,2]
[313965697,1707874246563,-2000.0,0.00025,2]
[313965698,1707874246575,-938.54769729,0.00025,2]
[313965699,1707874246585,-305.21545109,0.00025,2]
[313965700,1707874246595,-4095.61582231,0.00025,4]
[313965702,1707874246607,-6647.27431289,0.00025,4]
[313965703,1707874246619,-6407.21055527,0.00025,4]
[313965730,1707874286634,5298.586,0.00025,10]
[313965731,1707875126643,343.15,0.00021764,2]
[313965756,1707875404147,206.0,0.00021212,2]
[313965781,1707875431380,-155.0,0.00023004,2]
[313965782,1707875431391,-532.0,0.00023005,2]
[313965783,1707875431405,-213.90785435,0.00023559,2]
[313965784,1707875431418,-589.18214565,0.00023559,2]
[313965785,1707875431429,-200.0,0.00023592,2]
[313965786,1707875431439,-482.05785435,0.00023647,2]
[313965787,1707875431462,-3172.17281963,0.00023647,2]
[313965788,1707875431553,-5451.24675663,0.00023647,2]
[313965790,1707875431673,-1443.76184071,0.00023647,2]
[313965792,1707875431684,-941.20349936,0.00023648,2]
[313965867,1707875437450,-237.9,0.00023587,2]
[313965868,1707875437460,-2613.03961544,0.00023648,2]
[313965869,1707875437519,-1000.93038904,0.00023648,2]
[313965870,1707875437532,-996.68010117,0.00023648,2]
[313965871,1707875437544,-825.57805478,0.00023648,2]
[313965872,1707875437573,-561.2699,0.00023648,2]
[313965873,1707875437586,-333.4011,0.00023648,2]
[313965874,1707875437644,-687.65721504,0.00023648,2]
[313965875,1707875437692,-3543.95012517,0.00023648,2]
[313965876,1707875437702,-158.1073862,0.00023707,2]
[313965877,1707875437712,-500.0,0.00023714,2]
[313965878,1707875437722,-150.0,0.00023753,2]
[313965879,1707875437732,-499.99,0.00023799,2]
[313965880,1707875437742,-800.0,0.000238,2]
[313965881,1707875437752,-204.051261,0.00023808,2]
[313965882,1707875437762,-201.795312,0.00023808,2]
[313965883,1707875437772,-713.0,0.00023827,2]
[313965884,1707875437782,-343.15,0.00024028,2]
[313965885,1707875437791,-652.984,0.00024028,2]
[313965886,1707875437801,-453.0,0.00024028,2]
[313965887,1707875437811,-1304.11,0.00024328,2]
[313965888,1707875437821,-385.27,0.00024384,2]
[313965889,1707875437830,-3365.37,0.00024384,2]
[313965890,1707875437840,-206.0,0.00024444,6]
[313965891,1707875437850,-558.54,0.000246,2]
[313965892,1707875437861,-532.0,0.00024649,2]
[313965893,1707875437871,-250.0,0.00024658,2]
[313965894,1707875437881,-1364.892,0.00024749,2]
[313965895,1707875437891,-486.8336,0.00024749,2]
[313965896,1707875437900,-186.01473136,0.00024792,2]
[313965897,1707875437909,-200.0,0.000248,2]
[313965898,1707875437920,-800.0,0.000248,2]
[313965899,1707875437929,-200.0,0.000248,2]
[313965900,1707875437938,-500.0,0.000248,2]
[313965901,1707875437948,-1000.0,0.00024875,2]
[313965902,1707875437959,-1000.0,0.00024875,2]
[313965904,1707875437969,-1000.0,0.00024875,2]
[313965906,1707875437979,-1000.0,0.00024875,2]
[313965908,1707875437989,-194.5978,0.00024875,2]
[313965910,1707875437999,-195.05356565,0.00024899,2]
[313965912,1707875438008,-2956.10944663,0.00024901,2]
[313965915,1707875438020,-592.4893317,0.00024901,2]
[313966136,1707875440122,-300.27200297,0.00024899,2]
[313966138,1707875440141,-627.63734158,0.00024899,2]
[313966141,1707875440150,-161.39265848,0.00024901,2]
[313966389,1707875442433,-2314.60196319,0.00024901,2]
[313966391,1707875442443,-3365.13645534,0.00024903,2]
[313966406,1707875442560,-494.33920324,0.00024903,2]
[313966413,1707875442617,-672.81989561,0.00024903,2]
[313966416,1707875442628,-3601.60983079,0.00024903,2]
[313966418,1707875442639,-1926.00450656,0.00024903,2]
[313966420,1707875442650,-1451.00738313,0.00024903,2]
[313966555,1707875445395,-155.0,0.00024901,2]
[313966557,1707875445404,-4769.98645472,0.00024901,2]
[313966560,1707875445464,-2262.83972616,0.00024901,2]
[313966561,1707875445473,-3953.56342882,0.00024903,2]
[313966562,1707875445485,-1632.00714496,0.00024903,2]
[313966563,1707875445589,-427.3479997,0.00024903,2]
[313966564,1707875445639,-12516.4449188,0.00024903,2]
[313966565,1707875445650,-4128.51227406,0.00024903,2]
[313966572,1707875555680,722.6961875,0.00024198,8]
[313966574,1707875724029,329.98,0.00021226,2]
[313966575,1707876357601,324.26,0.00020537,2]
[313966618,1707876631773,-151.51525694,0.00022,2]
[313966619,1707876631783,-150.4771644,0.00022,2]
[313966620,1707876631793,-38.40913223,0.00022032,2]
[313966621,1707876631805,-994.70304095,0.00022032,2]
[313966622,1707876631826,-4354.96547338,0.00022032,2]
[313966624,1707876637624,-472.6108375,0.00022032,2]
[313966625,1707876637636,-2899.74,0.00022033,2]
[313966626,1707876637648,-162.52316733,0.00022107,2]
[313966627,1707876637660,-1142.62,0.00022131,2]
[313966628,1707876637673,-1000.0,0.00022202,2]
[313966629,1707876637685,-300.0,0.00022206,2]
[313966630,1707876637697,-150.0,0.00022206,2]
[313966631,1707876637709,-21853.06080144,0.00022208,2]
[313966632,1707876637720,-2512.3598309,0.00022309,2]
[313966633,1707876637733,-162.52316732,0.00022371,2]
[313966634,1707876637744,-237.9,0.00022455,2]
[313966635,1707876637756,-162.52316732,0.00022636,2]
[313966636,1707876637768,-195.02,0.00022708,2]
[313966637,1707876637780,-324.26,0.00022801,2]
[313966638,1707876637791,-999.99,0.00022895,2]
[313966639,1707876637803,-724.3615,0.00022898,2]
[313966640,1707876637814,-603.4005,0.000229,3]
[313966641,1707876637825,-202.37350765,0.000229,2]
[313966642,1707876637837,-1933.81595445,0.000229,2]
[313966643,1707876637849,-511.2871,0.000229,2]
[313966644,1707876637860,-1312.71,0.000229,2]
[313966645,1707876637872,-5000.0,0.000229,2]
[313966646,1707876637884,-162.52316732,0.000229,2]
[313966647,1707876637895,-1233.59,0.000229,2]
[313966649,1707876637906,-5262.07249022,0.0002296,2]
[313966650,1707876637917,-553.06700788,0.00022998,3]
[313966651,1707876637928,-261.9581371,0.00022998,2]